bitfinex/quotes_SOLUSD_20240725
["timestamp","ask_amount","ask_price","bid_price","bid_amount"]
[1721900118073,59.82,170.62,170.55,0.80845]
[1721900118281,14.82,170.61,170.55,15.62845]
[1721900118581,59.82,170.62,170.57,14.82]
[1721900118777,59.82,170.62,170.56,14.82]
[1721900118984,20.6814,170.61,170.55,15.62845]
[1721900119182,45.0,170.6,170.55,15.62845]
[1721900121695,17.59,170.66,170.55,0.80845]
[1721900121883,29.8798,170.67,170.55,0.80845]
[1721900121884,20.6812,170.62,170.57,14.82]
[1721900122087,20.6812,170.62,170.56,14.82]
[1721900122797,14.82,170.62,170.56,14.82]
[1721900122972,45.0,170.61,170.56,14.82]
[1721900123171,59.82,170.61,170.56,14.82]
[1721900123782,59.82,170.61,170.55,15.62845]
[1721900124173,65.6814,170.61,170.55,15.62845]
[1721900124496,14.82,170.6,170.55,15.62845]
[1721900124675,45.0,170.59,170.55,15.62845]
[1721900125078,45.0,170.6,170.56,14.82]
[1721900125277,45.0,170.61,170.56,14.82]
[1721900126384,59.82,170.61,170.55,15.62845]
[1721900126712,14.82,170.59,170.55,0.80845]
[1721900126886,26.548,170.59,170.55,0.80845]
[1721900127081,5.8625,170.58,170.55,0.80845]
[1721900127282,50.8627,170.57,170.55,0.80845]
[1721900127476,45.0,170.57,170.55,0.80845]
[1721900128373,14.82,170.58,170.55,0.80845]
[1721900128900,20.686,170.59,170.55,0.80845]
[1721900129105,14.82,170.59,170.55,0.80845]
[1721900129285,391.57866128,170.65,170.55,0.80845]
[1721900129595,20.683,170.56,170.55,0.80845]
[1721900129824,100.503,170.56,170.55,0.80845]
[1721900129975,100.503,170.56,170.43,21.7365]
[1721900129976,94.64,170.56,170.43,21.7365]
[1721900130177,14.82,170.51,170.45,14.82]
[1721900130374,14.82,170.5,170.45,14.82]
[1721900130600,5.8649,170.51,170.44,14.82]
[1721900130797,5.8649,170.51,170.45,14.82]
[1721900131182,20.0,170.55,170.48,14.82]
[1721900131404,20.0,170.55,170.43,21.7365]
[1721900131405,14.82,170.53,170.43,21.7365]
[1721900131589,14.82,170.53,170.48,14.82]
[1721900131900,14.82,170.52,170.47,14.82]
[1721900132683,14.82,170.52,170.46,14.82]
[1721900132983,45.0,170.54,170.48,14.82]
[1721900133608,14.82,170.52,170.47,14.82]
[1721900134287,59.82,170.51,170.46,14.82]
[1721900134502,14.82,170.5,170.45,14.82]
[1721900135804,59.82,170.51,170.45,14.82]
[1721900136400,59.82,170.51,170.43,21.7365]
[1721900136603,59.82,170.51,170.45,14.82]
[1721900136604,65.686,170.51,170.45,14.82]
[1721900137372,17.59,170.54,170.43,21.7365]
[1721900137491,40.686,170.53,170.48,14.82]
[1721900138002,5.866,170.53,170.48,14.82]
[1721900138207,5.866,170.53,170.49,14.82]
[1721900138707,45.0,170.52,170.48,14.82]
[1721900138907,45.0,170.52,170.47,14.82]
[1721900139103,45.0,170.52,170.48,14.82]
[1721900139985,45.0,170.52,170.47,14.82]
[1721900143306,45.0,170.52,170.43,21.7365]
[1721900143502,45.0,170.52,170.48,14.82]
[1721900143803,59.82,170.52,170.47,14.82]
[1721900146388,17.59,170.58,170.43,21.7365]
[1721900146594,14.82,170.55,170.5,14.82]
[1721900146890,14.82,170.54,170.49,14.82]
[1721900147707,45.0,170.53,170.49,14.82]
[1721900148914,65.6841,170.53,170.43,21.7365]
[1721900149115,20.6845,170.52,170.46,14.82]
[1721900149319,45.0,170.51,170.46,14.82]
[1721900149520,45.0,170.51,170.47,14.82]
[1721900151724,79.82,170.52,170.47,14.82]
[1721900153223,20.686,170.51,170.43,21.7365]
[1721900153400,82.59,170.52,170.43,21.7365]
[1721900153401,65.6851,170.5,170.45,14.82]
[1721900153724,20.6851,170.5,170.44,14.82]
[1721900153908,45.0,170.49,170.44,14.82]
[1721900155299,45.0,170.49,170.39,22.0014]
[1721900155497,59.82,170.49,170.43,14.82]
[1721900156295,45.0,170.49,170.44,14.82]
[1721900160808,77.41,170.49,170.39,22.0014]
[1721900161024,77.41,170.49,170.4,14.82]
[1721900161025,14.82,170.46,170.4,14.82]
[1721900161217,14.82,170.48,170.43,14.82]
[1721900161539,50.8657,170.49,170.44,14.82]
[1721900161540,45.0,170.47,170.44,14.82]
[1721900161709,45.0,170.49,170.44,14.82]
[1721900161904,45.0,170.49,170.38,6.94315379]
[1721900162108,65.6854,170.49,170.43,14.82]
[1721900162304,14.82,170.48,170.43,14.82]
[1721900162507,45.0,170.47,170.43,14.82]
[1721900164020,45.0,170.48,170.43,14.82]
[1721900165427,45.0,170.48,170.38,6.94315379]
[1721900165428,45.0,170.48,170.45,14.82]
[1721900165632,45.0,170.49,170.46,14.82]
[1721900165934,45.0,170.49,170.44,14.82]
[1721900166107,45.0,170.49,170.45,14.82]
[1721900166911,45.0,170.5,170.45,14.82]
[1721900167211,20.0,170.49,170.45,14.82]
[1721900169029,263.28780028,170.61,170.47,14.82]
[1721900169232,21.8135,170.53,170.48,14.82]
[1721900169439,36.6335,170.53,170.48,14.82]
[1721900169614,30.7694,170.53,170.48,14.82]
[1721900169807,15.9494,170.53,170.48,14.82]
[1721900170013,40.3524,170.57,170.5,14.82]
[1721900170210,14.82,170.56,170.51,14.82]
[1721900170621,31.4788,170.57,170.51,14.82]
[1721900170917,5.862,170.59,170.53,14.82]
[1721900171118,14.82,170.58,170.53,14.82]
[1721900171332,20.6824,170.58,170.53,14.82]
[1721900171522,20.6824,170.58,170.52,14.82]
[1721900172541,20.0,170.57,170.52,14.82]
[1721900172716,45.0,170.56,170.52,14.82]
[1721900174735,45.0,170.57,170.52,14.82]
[1721900175318,45.0,170.57,170.53,14.82]
[1721900175617,45.0,170.57,170.54,14.82]
[1721900175824,45.0,170.58,170.53,14.82]
[1721900176425,20.686,170.59,170.54,14.82]
[1721900176737,20.0,170.58,170.54,14.82]
[1721900176920,34.82,170.58,170.53,14.82]
[1721900177246,14.82,170.6,170.54,14.82]
[1721900177414,20.686,170.6,170.54,14.82]
[1721900177832,45.0,170.59,170.54,14.82]
[1721900178029,45.0,170.59,170.55,14.82]
[1721900178226,2.37642868,170.64,170.56,14.82]
[1721900178227,5.8611,170.62,170.56,14.82]
[1721900178425,20.686,170.62,170.56,14.82]
[1721900178656,14.82,170.62,170.56,14.82]
[1721900178824,21.5473,170.65,170.59,14.82]
[1721900179021,14.82,170.64,170.59,14.82]
[1721900179921,36.3733,170.65,170.59,14.82]
[1721900180434,14.82,170.64,170.59,14.82]
[1721900180738,5.8592,170.67,170.6,14.82]
[1721900180939,14.82,170.65,170.6,14.82]
[1721900181147,14.82,170.64,170.58,14.82]
[1721900181841,14.82,170.65,170.6,14.82]
[1721900182224,45.0,170.64,170.6,14.82]
[1721900184159,45.0,170.64,170.55,6.5181]
[1721900184160,14.82,170.63,170.55,6.5181]
[1721900184468,14.82,170.61,170.55,14.82]
[1721900184768,14.82,170.59,170.53,14.82]
[1721900185659,14.82,170.56,170.5,16.1179]
[1721900185872,62.59,170.6,170.49,14.82]
[1721900185873,14.82,170.54,170.49,14.82]
[1721900186028,14.82,170.54,170.47,14.82]
[1721900186029,14.82,170.52,170.47,14.82]
[1721900186227,14.82,170.52,170.46,14.82]
[1721900186428,14.82,170.51,170.46,14.82]
[1721900186652,14.82,170.51,170.45,14.82]
[1721900187335,14.82,170.51,170.46,14.82]
[1721900188161,14.82,170.52,170.47,14.82]
[1721900188340,45.0,170.51,170.47,14.82]
[1721900189332,59.82,170.51,170.46,14.82]
[1721900189531,59.82,170.51,170.43,6.0871]
[1721900189755,59.82,170.51,170.46,14.82]
[1721900190861,45.0,170.51,170.46,14.82]
[1721900191059,59.82,170.51,170.41,15.2109]
[1721900191263,14.82,170.5,170.45,14.82]
[1721900191444,45.0,170.49,170.44,14.82]
[1721900193573,45.0,170.49,170.39,7.38905589]
[1721900193866,59.82,170.49,170.44,14.82]
[1721900199570,59.82,170.49,170.4,1.17337405]
[1721900199571,45.0,170.49,170.46,14.82]
[1721900199767,45.0,170.5,170.46,14.82]
[1721900200772,45.0,170.5,170.45,14.82]
[1721900202154,45.0,170.5,170.46,14.82]
[1721900202761,59.82,170.5,170.45,14.82]
[1721900203563,59.82,170.5,170.39,7.38905589]
[1721900203773,14.82,170.49,170.44,14.82]
[1721900204645,59.82,170.48,170.39,7.38905589]
[1721900204964,14.82,170.47,170.41,14.82]
[1721900205163,45.0,170.46,170.41,14.82]
[1721900205363,59.82,170.46,170.39,1.02115589]
[1721900205569,59.82,170.46,170.4,14.82]
[1721900205759,59.82,170.46,170.41,14.82]
[1721900206642,45.0,170.46,170.41,14.82]
[1721900207378,14.82,170.45,170.38,0.80845]
[1721900207552,45.0,170.44,170.4,14.82]
[1721900207975,45.0,170.44,170.41,14.82]
[1721900208176,45.0,170.45,170.41,14.82]
[1721900208872,77.41,170.45,170.38,0.80845]
[1721900209073,14.82,170.44,170.39,14.82]
[1721900209268,45.0,170.43,170.39,14.82]
[1721900210061,45.0,170.44,170.39,14.82]
[1721900212052,59.82,170.44,170.39,14.82]
[1721900212451,404.7832,170.58,170.43,14.82]
[1721900212655,14.82,170.53,170.48,14.82]
[1721900212869,14.82,170.51,170.45,14.82]
[1721900213076,15.8307,170.49,170.38,0.80845]
[1721900213463,5.879,170.48,170.38,0.80845]
[1721900213664,14.82,170.46,170.41,14.82]
[1721900213859,14.82,170.47,170.38,0.80845]
[1721900214064,59.82,170.46,170.41,14.82]
[1721900214993,14.82,170.45,170.39,14.82]
[1721900215269,45.0,170.44,170.39,14.82]
[1721900215677,59.82,170.44,170.39,14.82]
[1721900216192,14.82,170.44,170.39,14.82]
[1721900216678,14.82,170.45,170.4,14.82]
[1721900217678,14.82,170.45,170.39,14.82]
[1721900219571,33.4207,170.49,170.4,14.82]
[1721900219764,14.82,170.45,170.4,14.82]
[1721900219965,14.82,170.45,170.39,14.82]
[1721900220391,14.82,170.45,170.4,14.82]
[1721900220561,14.82,170.45,170.38,0.80845]
[1721900220760,14.82,170.45,170.39,14.82]
[1721900220993,59.82,170.44,170.38,15.62845]
[1721900222084,59.82,170.44,170.39,14.82]
[1721900222285,14.82,170.44,170.39,14.82]
[1721900222785,14.82,170.45,170.39,14.82]
[1721900222996,45.0,170.44,170.39,14.82]
[1721900223710,14.82,170.45,170.39,14.82]
[1721900223995,20.699,170.46,170.4,14.82]
[1721900224178,65.0,170.45,170.4,14.82]
[1721900224479,79.82,170.45,170.4,14.82]
[1721900225094,65.0,170.45,170.4,14.82]
[1721900225295,59.82,170.45,170.4,14.82]
[1721900225796,14.82,170.45,170.4,14.82]
[1721900226669,8.15958718,170.51,170.41,14.82]
[1721900226868,14.82,170.48,170.38,0.80845]
[1721900227112,14.82,170.47,170.41,14.82]
[1721900227267,14.82,170.45,170.4,14.82]
[1721900227588,14.82,170.44,170.39,14.82]
[1721900230993,14.82,170.45,170.39,14.82]
[1721900231302,14.82,170.46,170.4,14.82]
[1721900231477,45.0,170.45,170.4,14.82]
[1721900234592,59.82,170.41,170.38,0.80845]
[1721900234787,14.82,170.4,170.38,0.80845]
[1721900235105,59.82,170.41,170.38,0.80845]
[1721900235482,45.0,170.41,170.38,0.80845]
[1721900236508,59.82,170.41,170.38,0.80845]
[1721900236821,14.82,170.4,170.38,0.80845]
[1721900237121,45.0,170.39,170.38,0.80845]
[1721900237284,14.82,170.4,170.38,0.80845]
[1721900237494,14.82,170.41,170.38,0.80845]
[1721900237800,45.0,170.4,170.38,0.80845]
[1721900237988,59.82,170.4,170.38,0.80845]
[1721900238582,14.82,170.39,170.38,0.80845]
[1721900238798,59.82,170.39,170.38,0.80845]
[1721900239389,85.6888,170.39,170.38,0.80845]
[1721900240289,65.0,170.39,170.38,0.80845]
[1721900240703,79.82,170.39,170.38,0.80845]
[1721900241593,65.0,170.39,170.38,0.80845]
[1721900241790,79.82,170.39,170.38,0.80845]
[1721900242404,5.8677,170.43,170.38,0.80845]
[1721900242610,14.82,170.4,170.38,0.80845]
[1721900242802,45.0,170.39,170.38,0.80845]
[1721900245402,14.82,170.4,170.38,0.80845]
[1721900246026,25.879,170.42,170.38,0.80845]
[1721900246191,45.0,170.41,170.38,0.80845]
[1721900246809,65.6884,170.41,170.38,0.80845]
[1721900247022,59.82,170.41,170.38,0.80845]
[1721900247327,21.2661,170.46,170.39,6.5438]
[1721900247328,14.82,170.46,170.39,6.5438]
[1721900247508,14.82,170.46,170.41,14.82]
[1721900248093,23.469,170.48,170.41,14.82]
[1721900248323,14.82,170.46,170.41,14.82]
[1721900249605,45.0,170.45,170.41,14.82]
[1721900250407,59.82,170.46,170.41,14.82]
[1721900251624,45.0,170.46,170.42,14.82]
[1721900251797,45.0,170.47,170.42,14.82]
[1721900252002,65.8966,170.55,170.44,14.82]
[1721900252003,6.6166,170.55,170.44,14.82]
[1721900252319,14.82,170.48,170.42,14.82]
[1721900253423,14.82,170.48,170.43,14.82]
[1721900254319,14.82,170.49,170.43,14.82]
[1721900254524,45.0,170.48,170.43,14.82]
[1721900254826,59.82,170.48,170.43,14.82]
[1721900255712,45.0,170.48,170.43,14.82]
[1721900257825,45.0,170.48,170.44,14.82]
[1721900258421,45.0,170.48,170.43,14.82]
[1721900259530,45.0,170.48,170.44,14.82]
[1721900260030,409.2,170.52,170.45,14.82]
[1721900260323,14.82,170.5,170.45,14.82]
[1721900260525,20.0,170.49,170.44,14.82]
[1721900260829,20.0,170.49,170.41,15.7595]
[1721900261032,34.82,170.49,170.43,14.82]
[1721900261335,45.0,170.48,170.43,14.82]
[1721900261500,45.0,170.48,170.45,14.82]
[1721900261699,20.0,170.49,170.45,14.82]
[1721900262822,20.0,170.49,170.46,14.82]
[1721900263033,20.0,170.5,170.46,14.82]
[1721900263831,34.82,170.5,170.45,14.82]
[1721900264731,20.0,170.5,170.45,14.82]
[1721900267128,20.0,170.5,170.44,6.1627]
[1721900267129,20.0,170.5,170.46,14.82]
[1721900267625,389.2,170.52,170.47,14.82]
[1721900267823,45.0,170.51,170.47,14.82]
[1721900268329,45.0,170.52,170.47,14.82]
[1721900269532,389.2,170.53,170.47,14.82]
[1721900269733,20.0,170.52,170.48,14.82]
[1721900270138,14.82,170.5,170.44,6.1627]
[1721900270311,389.2,170.53,170.44,6.1627]
[1721900270312,406.79,170.53,170.44,6.1627]
[1721900270515,14.82,170.49,170.44,6.1627]
[1721900270935,14.82,170.49,170.44,20.9827]
[1721900271234,45.0,170.48,170.44,14.82]
[1721900271934,12.3983,170.49,170.41,15.7595]
[1721900272135,12.3983,170.49,170.44,14.82]
[1721900273444,14.82,170.5,170.44,14.82]
[1721900273638,14.82,170.5,170.45,14.82]
[1721900273639,45.0,170.49,170.45,14.82]
[1721900274338,14.82,170.51,170.45,14.82]
[1721900274546,59.82,170.5,170.45,14.82]
[1721900275024,45.0,170.5,170.45,14.82]
[1721900275339,14.82,170.51,170.45,14.82]
[1721900275548,20.699,170.51,170.45,14.82]
[1721900276260,14.82,170.52,170.46,14.82]
[1721900276423,15.9002,170.56,170.48,14.82]
[1721900276617,14.82,170.54,170.48,14.82]
[1721900276822,20.0,170.53,170.48,14.82]
[1721900277123,34.82,170.53,170.48,14.82]
[1721900277821,15.9002,170.56,170.49,14.82]
[1721900278039,14.82,170.55,170.5,14.82]
[1721900281126,14.82,170.56,170.5,14.82]
[1721900281438,21.5107,170.6,170.51,14.82]
[1721900281630,14.82,170.58,170.47,16.0952]
[1721900281824,14.82,170.58,170.52,14.82]
[1721900282458,14.82,170.57,170.51,14.82]
[1721900282629,14.82,170.56,170.51,14.82]
[1721900282827,14.82,170.54,170.47,16.0952]
[1721900283029,14.82,170.54,170.49,14.82]
[1721900283733,20.6838,170.54,170.48,14.82]
[1721900283945,59.82,170.53,170.48,14.82]
[1721900285147,45.0,170.53,170.48,14.82]
[1721900285636,59.82,170.53,170.48,14.82]
[1721900285945,14.82,170.51,170.45,14.82]
[1721900286145,59.82,170.5,170.44,14.82]
[1721900291264,59.82,170.5,170.45,14.82]
[1721900294364,45.0,170.5,170.47,14.82]
[1721900294654,45.0,170.51,170.47,14.82]
[1721900294839,45.0,170.51,170.43,15.1491]
[1721900295029,45.0,170.51,170.47,14.82]
[1721900295546,14.82,170.52,170.47,14.82]
[1721900295746,16.1688,170.54,170.48,14.82]
[1721900295943,30.9888,170.54,170.49,14.82]
[1721900296141,30.9888,170.54,170.48,14.82]
[1721900296837,30.9888,170.54,170.49,14.82]
[1721900297030,14.82,170.55,170.49,14.82]
[1721900297230,59.82,170.54,170.48,14.82]
[1721900298954,59.82,170.54,170.49,14.82]
[1721900301252,45.0,170.54,170.49,14.82]
[1721900301940,16.646,170.58,170.53,14.82]
[1721900302256,29.9474,170.71,170.57,14.82]
[1721900302562,15.1274,170.71,170.66,14.82]
[1721900302936,14.82,170.7,170.65,14.82]
[1721900303132,14.82,170.7,170.58,1.17197201]
[1721900303371,14.82,170.64,170.54,22.3275]
[1721900303649,14.82,170.66,170.6,14.82]
[1721900304348,14.82,170.65,170.59,14.82]
[1721900304752,14.82,170.64,170.58,14.82]
[1721900305053,14.82,170.61,170.55,14.82]
[1721900305352,59.82,170.6,170.54,14.82]
[1721900306051,14.82,170.59,170.54,14.82]
[1721900306276,45.0,170.6,170.55,14.82]
[1721900306460,59.82,170.6,170.54,14.82]
[1721900307561,14.82,170.6,170.54,14.82]
[1721900307756,45.0,170.59,170.52,14.82]
[1721900307957,14.82,170.56,170.51,14.82]
[1721900308130,59.82,170.55,170.49,14.82]
[1721900308336,45.0,170.59,170.48,14.82]
[1721900308337,14.82,170.54,170.48,14.82]
[1721900308558,45.0,170.53,170.48,14.82]
[1721900309054,59.82,170.53,170.48,14.82]
[1721900310760,14.82,170.52,170.43,8.66849327]
[1721900310940,14.82,170.52,170.46,14.82]
[1721900311140,14.82,170.51,170.45,14.82]
[1721900311860,59.82,170.5,170.45,14.82]
[1721900312861,45.0,170.5,170.45,14.82]
[1721900314776,59.82,170.5,170.44,14.82]
[1721900315848,14.82,170.47,170.42,14.82]
[1721900316049,14.82,170.46,170.41,14.82]
[1721900316243,14.82,170.46,170.4,14.82]
[1721900317469,14.82,170.45,170.4,14.82]
[1721900319049,14.82,170.45,170.38,7.14825]
[1721900319050,14.82,170.45,170.39,14.82]
[1721900319251,14.82,170.43,170.38,0.80845]
[1721900319474,14.82,170.42,170.38,0.80845]
[1721900319976,14.82,170.4,170.38,0.80845]
[1721900320466,45.0,170.39,170.38,0.80845]
[1721900320856,14.82,170.4,170.38,0.80845]
[1721900321164,14.82,170.41,170.38,0.80845]
[1721900321470,45.0,170.4,170.38,0.80845]
[1721900321676,59.82,170.4,170.38,0.80845]
[1721900321853,45.0,170.4,170.38,0.80845]
[1721900325863,5.8679,170.42,170.38,0.80845]
[1721900326066,59.82,170.41,170.38,0.80845]
[1721900326572,14.82,170.4,170.38,0.80845]
[1721900326951,59.82,170.41,170.38,0.80845]
[1721900327145,45.0,170.41,170.38,0.80845]
[1721900327675,45.0,170.42,170.38,0.80845]
[1721900328173,5.8684,170.41,170.38,0.80845]
[1721900328367,45.0,170.4,170.38,0.80845]
[1721900328956,45.0,170.41,170.38,0.80845]
[1721900329446,14.82,170.42,170.38,0.80845]
[1721900330159,20.6888,170.39,170.38,0.80845]
[1721900330366,65.6888,170.39,170.38,0.80845]
[1721900331050,59.82,170.39,170.38,0.80845]
[1721900332860,95.0529,170.46,170.38,0.80845]
[1721900333084,14.82,170.4,170.38,0.80845]
[1721900333576,14.82,170.39,170.38,0.80845]
[1721900334387,59.82,170.39,170.38,0.80845]
[1721900335562,45.0,170.39,170.38,0.80845]
[1721900335771,14.82,170.4,170.38,0.80845]
[1721900338457,14.82,170.39,170.38,0.80845]
[1721900341282,14.82,170.41,170.38,0.80845]
[1721900341459,45.0,170.4,170.38,0.80845]
[1721900342381,59.82,170.4,170.38,0.80845]
[1721900343874,14.82,170.39,170.38,0.80845]
[1721900344062,59.82,170.39,170.38,0.80845]
[1721900344257,45.0,170.39,170.38,0.80845]
[1721900344477,14.82,170.4,170.38,0.80845]
[1721900349886,14.82,170.39,170.38,0.80845]
[1721900350186,59.82,170.39,170.38,0.80845]
[1721900351887,5.8678,170.43,170.38,0.80845]
[1721900352087,14.82,170.44,170.39,14.82]
[1721900352390,406.84,170.48,170.38,0.80845]
[1721900352391,14.82,170.43,170.38,15.62845]
[1721900352766,14.82,170.43,170.38,0.80845]
[1721900353394,14.82,170.42,170.38,0.80845]
[1721900354278,14.82,170.41,170.38,0.80845]
[1721900354985,14.82,170.4,170.38,0.80845]
[1721900355369,14.82,170.39,170.38,0.80845]
[1721900355868,59.82,170.39,170.38,0.80845]
[1721900356301,14.82,170.4,170.38,0.80845]
[1721900357091,14.82,170.41,170.38,0.80845]
[1721900357295,45.0,170.4,170.38,0.80845]
[1721900357597,59.82,170.4,170.38,0.80845]
[1721900362874,45.0,170.4,170.38,0.80845]
[1721900363199,14.82,170.39,170.38,0.80845]
[1721900363402,59.82,170.39,170.38,0.80845]
[1721900367612,65.6888,170.39,170.38,0.80845]
[1721900368189,85.6888,170.39,170.38,0.80845]
[1721900370009,124.8342,170.39,170.38,0.80845]
[1721900370183,5.879,170.34,170.27,14.82]
[1721900370384,71.5699,170.33,170.27,14.82]
[1721900370802,5.8713,170.32,170.27,14.82]
[1721900370988,45.0,170.31,170.27,14.82]
[1721900371191,45.0,170.31,170.24,21.3056]
[1721900371192,32.3145,170.37,170.24,21.3056]
[1721900371389,14.82,170.33,170.28,14.82]
[1721900371594,45.0,170.32,170.28,14.82]
[1721900371796,45.0,170.33,170.28,14.82]
[1721900372304,45.0,170.33,170.3,14.82]
[1721900372506,14.82,170.37,170.31,14.82]
[1721900372807,65.0,170.36,170.31,14.82]
[1721900373489,79.82,170.36,170.31,14.82]
[1721900373815,85.69,170.36,170.31,14.82]
[1721900374009,85.69,170.36,170.3,14.82]
[1721900374503,20.6906,170.34,170.24,21.3056]
[1721900374687,20.6909,170.33,170.27,14.82]
[1721900374887,45.0,170.32,170.27,14.82]
[1721900375803,45.0,170.32,170.28,14.82]
[1721900376197,45.0,170.32,170.24,21.3056]
[1721900376393,45.0,170.32,170.27,14.82]
[1721900377009,65.6913,170.32,170.27,14.82]
[1721900377209,65.6913,170.32,170.26,14.82]
[1721900378211,71.5703,170.32,170.26,14.82]
[1721900379287,20.0,170.31,170.26,14.82]
[1721900379493,45.0,170.3,170.27,5.8729]
[1721900379804,45.0,170.3,170.27,20.6929]
[1721900380409,45.0,170.3,170.28,5.8726]
[1721900380607,45.0,170.3,170.29,14.82]
[1721900381102,45.0,170.3,170.29,20.6923]
[1721900381409,45.0,170.3,170.28,14.82]
[1721900381707,45.0,170.31,170.28,14.82]
[1721900382004,45.0,170.31,170.24,21.3056]
[1721900382208,45.0,170.32,170.28,14.82]
[1721900382806,45.0,170.33,170.28,14.82]
[1721900383009,20.0,170.32,170.28,14.82]
[1721900383209,45.0,170.31,170.28,14.82]
[1721900383705,45.0,170.31,170.3,14.82]
[1721900383899,5.8695,170.38,170.32,5.8709]
[1721900384207,5.8695,170.37,170.31,5.8715]
[1721900385206,5.8695,170.37,170.32,14.82]
[1721900385590,14.82,170.34,170.24,22.47992896]
[1721900385809,14.82,170.34,170.28,14.82]
[1721900385810,50.871,170.33,170.28,14.82]
[1721900386510,20.0,170.32,170.28,14.82]
[1721900386692,45.0,170.31,170.28,14.82]
[1721900387394,45.0,170.31,170.29,14.82]
[1721900387594,14.82,170.37,170.24,22.48014112]
[1721900387808,79.82,170.36,170.3,20.6918]
[1721900387995,5.8703,170.35,170.3,14.82]
[1721900388194,65.0,170.34,170.3,14.82]
[1721900390808,65.0,170.34,170.29,14.82]
[1721900391121,79.82,170.34,170.28,14.82]
[1721900391723,20.6912,170.33,170.24,21.3056]
[1721900391911,59.82,170.32,170.24,15.0114]
[1721900392212,20.0,170.31,170.26,14.82]
[1721900392428,65.0,170.31,170.27,14.82]
[1721900394398,70.8716,170.31,170.27,14.82]
[1721900397804,70.8716,170.31,170.26,14.82]
[1721900398716,5.872,170.3,170.25,5.8734]
[1721900398904,50.8724,170.29,170.24,20.694]
[1721900399610,50.8724,170.29,170.25,14.82]
[1721900400009,45.0,170.29,170.25,14.82]
[1721900400805,45.0,170.29,170.21,0.80845]
[1721900401006,14.82,170.27,170.21,15.62845]
[1721900401211,14.82,170.27,170.22,14.82]
[1721900401212,45.0,170.26,170.22,14.82]
[1721900401411,45.0,170.26,170.22,20.6947]